[Event "CZE-tht Extraliga 2018-19"]
[Site "Czech Republic"]
[Date "2018.12.02"]
[Round "4"]
[White "Sosna, Jan"]
[Black "Pisk, Petr"]
[Result "1/2-1/2"]
[ECO "A46"]
[WhiteElo "2338"]
[BlackElo "2332"]
[Annotator "NA RC"]
[PlyCount "125"]
[EventDate "2018.11.03"]
[EventType "team-tourn"]
[EventCountry "CZE"]
[SourceTitle "playchess.com"]
[Source "ChessBase"]
[SourceQuality "1"]
[WhiteTeam "Poruba"]
[BlackTeam "Brno"]
[TimeControl "40/5400+30:1800+30"]

1. d4 {[%emt 0:00:00]} Nf6 {[%emt 0:03:39]} 2. Nf3 {[%emt 0:00:00]} e6 {[%emt 0:01:19]} 3. Bg5 {[%emt 0:00:00]} c5 {[%emt 0:00:28]} 4. e3 {[%emt 0:00:14]} h6 {[%emt 0:01:55]} 5. Bh4 b6 {[%emt 0:02:21]} 6. Nbd2 {[%emt 0:02:45]} Be7 {[%emt 0:05:16]} 7. c3 {[%emt 0:00:36]} cxd4 {[%emt 0:03:58]} 8. exd4 {[%emt 0:02:49]} O-O {[%emt 0:04:20]} 9. a4 {[%emt 0:00:44]} Ba6 {[%emt 0:06:27]} 10. Bb5 {[%emt 0:00:52]} Bb7 {[%emt 0:13:28]} 11. O-O {[%emt 0:01:21]} Nc6 {[%emt 0:04:05]} 12. Re1 {[%emt 0:02:35]} a6 {[%emt 0:04:48]} 13. Bd3 {[%emt 0:01:01]} Nd5 {[%emt 0:00:17]} 14. Bg3 {[%emt 0:02:59]} f5 {[%emt 0:01:33]} 15. h3 {[%emt 0:03:34]} Rf7 {[%emt 0:18:46]} 16. Nc4 {[%emt 0:05:41]} f4 {[%emt 0:05:56]} 17. Bh2 {[%emt 0:01:02]} Rf6 {[%emt 0:02:43]} 18. Be4 {[%emt 0:20:23]} Qc7 {[%emt 0:08:08]} 19. Nfe5 {[%emt 0:32:58]} Nxe5 {[%emt 0:01:50]} 20. Nxe5 {[%emt 0:00:30]} Bd6 {[%emt 0:00:30]} 21. Qf3 {[%emt 0:06:21]} Bxe5 {[%emt 0:02:08]} 22. dxe5 {[%emt 0:00:16]} Rf7 {[%emt 0:04:31]} 23. Qg4 {[%emt 0:01:12]} Ne7 {[%emt 0:02:29]} 24. Bxf4 {[%emt 0:02:21]} Bxe4 25. Rxe4 {[%emt 0:00:09]} Nf5 {[%emt 0:00:48]} 26. Qe2 {[%emt 0:03:01]} Qb7 {[%emt 0:00:42]} 27. Rb4 {[%emt 0:03:38]} Raf8 {[%emt 0:00:26]} 28. Qe4 {[%emt 0:00:24]} Qc7 {[%emt 0:00:34]} 29. Rc4 {[%emt 0:01:04]} Qb8 {[%emt 0:00:25]} 30. Rd1 {[%emt 0:02:19]} Ne7 {[%emt 0:00:33]} 31. Bg3 {[%emt 0:01:51]} Nf5 {[%emt 0:00:02]} 32. Bh2 {[%emt 0:00:47]} Ne7 {[%emt 0:00:05]} 33. Bg3 {[%emt 0:00:35]} Nf5 {[%emt 0:00:01]} 34. Bh2 {[%emt 0:00:07]} Ne7 {[%emt 0:00:19]} 35. Rd2 {[%emt 0:00:36]} b5 {[%emt 0:00:34]} 36. axb5 {[%emt 0:00:13]} axb5 {[%emt 0:00:06]} 37. Rcd4 {[%emt 0:00:49]} Qb6 {[%emt 0:00:14]} 38. Qe1 {[%emt 0:01:26]} Nd5 {[%emt 0:02:01]} 39. Bg3 {[%emt 0:00:29]} Qc5 {[%emt 0:01:01]} 40. Kh2 {[%emt 0:01:28]} Qc6 {[%emt 0:00:38]} 41. Qe4 {[%emt 0:06:15]} Qa6 {[%emt 0:02:30]} 42. Qd3 {[%emt 0:01:50]} Rc8 {[%emt 0:03:20]} 43. Qg6 {[%emt 0:10:48]} Qa1 {[%emt 0:14:02]} 44. Rg4 {[%emt 0:02:39]} Qc1 45. Qc2 {[%emt 0:04:53]} Qxc2 {[%emt 0:07:52]} 46. Rxc2 {[%emt 0:00:05]} Rff8 {[%emt 0:00:04]} 47. Re4 {[%emt 0:00:51]} Rc4 {[%emt 0:00:41]} 48. Rxc4 {[%emt 0:02:15]} bxc4 49. Rd2 {[%emt 0:00:31]} Rb8 {[%emt 0:03:33]} 50. f3 {[%emt 0:00:10]} Kf8 {[%emt 0:01:45]} 51. Bf2 {[%emt 0:00:13]} Rb5 {[%emt 0:01:13]} 52. g3 {[%emt 0:01:53]} Ke8 {[%emt 0:00:39]} 53. Kg2 {[%emt 0:00:54]} Kd8 {[%emt 0:00:48]} 54. f4 {[%emt 0:00:35]} Ra5 {[%emt 0:00:29]} 55. Kf3 {[%emt 0:01:10]} Ra2 {[%emt 0:00:07]} 56. Re2 {[%emt 0:00:15]} Kc7 {[%emt 0:00:54]} 57. Bc5 {[%emt 0:00:13]} g6 {[%emt 0:00:31]} 58. g4 {[%emt 0:01:49]} Kc6 {[%emt 0:00:10]} 59. Bf8 {[%emt 0:00:37]} h5 {[%emt 0:00:36]} 60. gxh5 {[%emt 0:01:04]} gxh5 {[%emt 0:00:02]} 61. Rg2 {[%emt 0:00:40]} Kb5 {[%emt 0:00:44]} 62. Re2 {[%emt 0:01:25]} Ka4 63. Ba3 1/2-1/2

[Event "CZE-tht Extraliga 2018-19"]
[Site "Czech Republic"]
[Date "2018.12.02"]
[Round "4"]
[White "Miturova, Magdalena"]
[Black "Sodoma, Jan"]
[Result "1-0"]
[ECO "C48"]
[WhiteElo "2211"]
[BlackElo "2330"]
[Annotator "RC"]
[PlyCount "99"]
[EventDate "2018.11.03"]
[EventType "team-tourn"]
[EventCountry "CZE"]
[SourceTitle "playchess.com"]
[Source "ChessBase"]
[SourceQuality "1"]
[WhiteTeam "Cesky Tesin"]
[BlackTeam "Turnov"]
[TimeControl "40/5400+30:1800+30"]

1. e4 {[%emt 0:00:00]} e5 {[%emt 0:00:00]} 2. Nf3 {[%emt 0:00:00]} Nc6 {[%emt 0:00:00]} 3. Nc3 {[%emt 0:00:54]} Nf6 {[%emt 0:00:14]} 4. Bb5 {[%emt 0:00:18]} Bd6 {[%emt 0:00:44]} 5. d3 {[%emt 0:08:24]} h6 {[%emt 0:04:14]} 6. h3 {[%emt 0:04:28]} a6 {[%emt 0:05:01]} 7. Bxc6 {[%emt 0:03:15]} dxc6 {[%emt 0:00:09]} 8. Be3 {[%emt 0:03:19]} c5 {[%emt 0:01:07]} 9. Ne2 {[%emt 0:02:37]} Bd7 {[%emt 0:02:48]} 10. Ng3 {[%emt 0:02:59]} O-O {[%emt 0:01:44]} 11. Nh2 {[%emt 0:03:02]} Re8 {[%emt 0:05:46]} 12. Qf3 {[%emt 0:09:08]} Nh7 {[%emt 0:02:48]} 13. Qh5 {[%emt 0:11:07]} Qf6 {[%emt 0:03:35]} 14. O-O-O {[%emt 0:13:05]} Ng5 {[%emt 0:10:54]} 15. Kb1 {[%emt 0:01:40]} Ne6 {[%emt 0:04:54]} 16. Nf5 {[%emt 0:05:12]} Nd4 {[%emt 0:02:19]} 17. Nxd6 {[%emt 0:06:29]} cxd6 {[%emt 0:00:32]} 18. Rdf1 {[%emt 0:01:42]} Qg6 {[%emt 0:02:30]} 19. Qd1 {[%emt 0:04:32]} f5 {[%emt 0:00:33]} 20. exf5 {[%emt 0:07:45]} Nxf5 {[%emt 0:03:38]} 21. g4 {[%emt 0:01:27]} Ne7 {[%emt 0:00:50]} 22. Nf3 {[%emt 0:02:30]} Nd5 {[%emt 0:00:40]} 23. Rhg1 {[%emt 0:02:48]} Rf8 {[%emt 0:11:14]} 24. Nh4 {[%emt 0:01:14]} Qe6 {[%emt 0:02:07]} 25. Nf5 {[%emt 0:01:18]} b5 {[%emt 0:02:27]} 26. c3 {[%emt 0:01:14]} Rab8 {[%emt 0:03:08]} 27. Bc1 {[%emt 0:01:07]} Be8 {[%emt 0:05:57]} 28. Qb3 {[%emt 0:01:39]} Bc6 {[%emt 0:04:34]} 29. Ne3 {[%emt 0:00:39]} b4 {[%emt 0:01:59]} 30. Nxd5 {[%emt 0:00:30]} Bxd5 {[%emt 0:00:08]} 31. c4 {[%emt 0:00:06]} Bf3 {[%emt 0:00:33]} 32. Re1 {[%emt 0:00:53]} Qg6 {[%emt 0:01:14]} 33. Rg3 {[%emt 0:00:25]} a5 {[%emt 0:00:36]} 34. h4 {[%emt 0:00:36]} a4 {[%emt 0:06:18]} 35. h5 {[%emt 0:00:07]} Qe8 {[%emt 0:04:43]} 36. Qc2 {[%emt 0:00:03]} b3 {[%emt 0:00:08]} 37. Qd2 {[%emt 0:00:59]} bxa2+ {[%emt 0:02:17]} 38. Ka1 {[%emt 0:00:40]} Rb7 {[%emt 0:02:19]} 39. g5 {[%emt 0:00:39]} Bxh5 {[%emt 0:01:30]} 40. gxh6 {[%emt 0:00:28]} g6 {[%emt 0:00:20]} 41. f4 {[%emt 0:07:01]} Re7 {[%emt 0:03:23]} 42. fxe5 {[%emt 0:02:15]} Rxe5 {[%emt 0:00:10]} 43. Rxe5 {[%emt 0:00:34]} Qxe5 {[%emt 0:02:08]} 44. Re3 {[%emt 0:08:59]} Qf6 {[%emt 0:00:08]} 45. Kxa2 {[%emt 0:02:38]} Kh7 {[%emt 0:01:08]} 46. Qe1 {[%emt 0:01:01]} Bf3 {[%emt 0:03:35]} 47. Bd2 {[%emt 0:01:39]} d5 {[%emt 0:02:31]} 48. Re6 {[%emt 0:03:10]} Qf5 {[%emt 0:00:21]} 49. Re5 {[%emt 0:01:19]} Qf6 {[%emt 0:00:06]} 50. Bg5 {[%emt 0:01:42]} 1-0

[Event "CZE-tht Extraliga 2018-19"]
[Site "Czech Republic"]
[Date "2019.01.12"]
[Round "5"]
[White "Azarov, Sergei"]
[Black "Markowski, Tomasz"]
[Result "1/2-1/2"]
[ECO "B85"]
[WhiteElo "2575"]
[BlackElo "2546"]
[Annotator "ChessBase"]
[PlyCount "89"]
[EventDate "2018.11.03"]
[EventType "team-tourn"]
[EventCountry "CZE"]
[SourceTitle "playchess.com"]
[Source "ChessBase"]
[SourceQuality "1"]
[WhiteTeam "Beskydska"]
[BlackTeam "Poruba"]
[TimeControl "40/5400+30:1800+30"]

1. e4 c5 2. Nf3 e6 3. d4 cxd4 4. Nxd4 a6 5. Be2 Nf6 6. Nc3 Qc7 7. O-O d6 8. f4 Be7 9. Qe1 O-O 10. Qg3 b5 11. e5 Ne8 12. exd6 Bxd6 13. Ne4 Be7 14. Bf3 Bb7 15. f5 Qxg3 16. hxg3 Bd5 17. fxe6 fxe6 18. Bg5 Ra7 19. Bg4 Rxf1+ 20. Rxf1 Bxg5 21. Nxg5 e5 22. Re1 Nd7 23. Bf3 Bxf3 24. Ngxf3 Nd6 25. Nxe5 Nxe5 26. Rxe5 Nc4 27. Rc5 Rd7 28. Nf3 Rd1+ 29. Kh2 Nxb2 30. Rc8+ Kf7 31. Rc7+ Kf6 32. Rc6+ Kf5 33. Rxa6 Nc4 34. Rc6 Ne3 35. Rc5+ Kf6 36. g4 Nxg4+ 37. Kg3 Ne3 38. Rxb5 Nxc2 39. Rb6+ Ke7 40. a4 Nd4 41. a5 Nxf3 42. gxf3 Ra1 43. a6 Ra5 44. f4 Kf7 45. Kg4 1/2-1/2

[Event "CZE-tht Extraliga 2018-19"]
[Site "Czech Republic"]
[Date "2019.01.12"]
[Round "5"]
[White "Hracek, Zbynek"]
[Black "Slovak, Kilian"]
[Result "1-0"]
[ECO "E73"]
[WhiteElo "2563"]
[BlackElo "2288"]
[Annotator "ChessBase"]
[PlyCount "80"]
[EventDate "2018.11.03"]
[EventType "team-tourn"]
[EventCountry "CZE"]
[SourceTitle "playchess.com"]
[Source "ChessBase"]
[SourceQuality "1"]
[WhiteTeam "Pardubice"]
[BlackTeam "Siesta B"]
[TimeControl "40/5400+30:1800+30"]

1. d4 {[%emt 0:00:00]} Nf6 {[%emt 0:00:00]} 2. c4 {[%emt 0:00:00]} g6 {[%emt 0:00:00]} 3. Nc3 {[%emt 0:00:02]} Bg7 {[%emt 0:00:00]} 4. e4 {[%emt 0:00:10]} d6 {[%emt 0:00:04]} 5. Be2 {[%emt 0:00:43]} O-O {[%emt 0:00:21]} 6. Bg5 {[%emt 0:00:00]} Na6 {[%emt 0:02:00]} 7. Qd2 {[%emt 0:06:02]} e5 {[%emt 0:13:05]} 8. d5 {[%emt 0:00:25]} Nc5 {[%emt 0:07:06]} 9. f3 {[%emt 0:00:15]} a5 {[%emt 0:10:31]} 10. h4 {[%emt 0:13:06]} c6 {[%emt 0:07:41]} 11. g4 {[%emt 0:11:20]} Qb6 {[%emt 0:01:44]} 12. h5 {[%emt 0:10:57]} Qb4 {[%emt 0:06:17]} 13. Nh3 {[%emt 0:07:15]} cxd5 {[%emt 0:02:46]} 14. cxd5 {[%emt 0:03:17]} Bd7 {[%emt 0:03:04]} 15. Nf2 {[%emt 0:01:32]} Rac8 {[%emt 0:12:30]} 16. Nb5 {[%emt 0:09:48]} Bxb5 {[%emt 0:00:33]} 17. Qxb4 {[%emt 0:00:07]} axb4 {[%emt 0:00:52]} 18. Bxb5 {[%emt 0:00:03]} Ra8 {[%emt 0:00:55]} 19. Ke2 {[%emt 0:18:11]} Ra5 {[%emt 0:02:36]} 20. Bc4 {[%emt 0:00:02]} Rfa8 {[%emt 0:03:31]} 21. h6 {[%emt 0:04:53]} Bh8 {[%emt 0:00:08]} 22. Rac1 {[%emt 0:00:04]} Nfd7 {[%emt 0:11:09]} 23. Bd2 {[%emt 0:04:15]} Bf6 {[%emt 0:03:18]} 24. Bxb4 {[%emt 0:01:12]} R5a7 {[%emt 0:01:44]} 25. Bd2 {[%emt 0:04:05]} b5 {[%emt 0:03:04]} 26. Bxb5 {[%emt 0:00:09]} Rxa2 {[%emt 0:00:07]} 27. Bxd7 {[%emt 0:00:08]} Nxd7 {[%emt 0:00:11]} 28. Nd3 {[%emt 0:00:43]} R2a6 {[%emt 0:03:34]} 29. Rc6 {[%emt 0:02:11]} Rxc6 {[%emt 0:03:57]} 30. dxc6 {[%emt 0:00:02]} Nc5 {[%emt 0:00:07]} 31. Nxc5 {[%emt 0:02:14]} dxc5 {[%emt 0:00:01]} 32. b4 {[%emt 0:00:11]} cxb4 {[%emt 0:00:04]} 33. Bxb4 {[%emt 0:00:09]} Rc8 {[%emt 0:02:23]} 34. Rc1 {[%emt 0:02:43]} Bg5 {[%emt 0:00:44]} 35. Rc3 {[%emt 0:00:07]} Bxh6 {[%emt 0:00:20]} 36. c7 {[%emt 0:00:45]} Bf8 {[%emt 0:00:15]} 37. Rd3 {[%emt 0:00:38]} Rxc7 {[%emt 0:00:56]} 38. Rd8 {[%emt 0:00:06]} Rb7 {[%emt 0:00:39]} 39. Bxf8 {[%emt 0:00:15]} f6 {[%emt 0:00:04]} 40. g5 {[%emt 0:00:52]} fxg5 {[%emt 0:00:25]} 1-0

[Event "CZE-tht Extraliga 2018-19"]
[Site "Czech Republic"]
[Date "2019.01.12"]
[Round "5"]
[White "Plat, Vojtech"]
[Black "Simacek, Pavel"]
[Result "1-0"]
[ECO "C80"]
[WhiteElo "2550"]
[BlackElo "2478"]
[Annotator "ChessBase"]
[PlyCount "67"]
[EventDate "2018.11.03"]
[EventType "team-tourn"]
[EventCountry "CZE"]
[SourceTitle "playchess.com"]
[Source "ChessBase"]
[SourceQuality "1"]
[WhiteTeam "Lysa nad Labem"]
[BlackTeam "Turnov"]
[TimeControl "40/5400+30:1800+30"]

1. e4 {[%emt 0:00:00]} e5 {[%emt 0:00:00]} 2. Nf3 {[%emt 0:00:00]} Nc6 {[%emt 0:00:06]} 3. Bb5 {[%emt 0:00:00]} a6 {[%emt 0:00:04]} 4. Ba4 {[%emt 0:00:00]} Nf6 {[%emt 0:00:05]} 5. O-O {[%emt 0:00:01]} Nxe4 {[%emt 0:00:12]} 6. Re1 {[%emt 0:02:31]} Nc5 {[%emt 0:00:15]} 7. Bxc6 {[%emt 0:00:10]} dxc6 {[%emt 0:00:10]} 8. d4 {[%emt 0:00:11]} Ne6 {[%emt 0:00:54]} 9. Nxe5 {[%emt 0:00:04]} Be7 {[%emt 0:00:52]} 10. Be3 {[%emt 0:01:32]} O-O {[%emt 0:02:01]} 11. Nc3 {[%emt 0:00:10]} Bf6 {[%emt 0:14:53]} 12. f4 {[%emt 0:01:37]} g6 {[%emt 0:02:24]} 13. Ne4 {[%emt 0:05:28]} Ng7 {[%emt 0:07:22]} 14. d5 {[%emt 0:03:27]} cxd5 {[%emt 0:09:05]} 15. Qxd5 {[%emt 0:02:33]} Be7 {[%emt 0:05:40]} 16. Qa5 {[%emt 0:06:43]} Bf5 {[%emt 0:02:29]} 17. Rad1 {[%emt 0:01:39]} Qc8 {[%emt 0:00:07]} 18. Nc3 {[%emt 0:02:49]} Bxc2 {[%emt 0:07:10]} 19. Rd7 {[%emt 0:09:27]} Bd6 {[%emt 0:02:03]} 20. Nd5 {[%emt 0:00:37]} Nf5 {[%emt 0:05:53]} 21. Qc3 {[%emt 0:03:08]} Ba4 {[%emt 0:18:03]} 22. Nf6+ {[%emt 0:00:26]} Kg7 {[%emt 0:00:04]} 23. Neg4 {[%emt 0:01:04]} h6 {[%emt 0:00:37]} 24. Ne4+ {[%emt 0:14:37]} Kh7 {[%emt 0:01:16]} 25. Ngf6+ {[%emt 0:03:39]} Kh8 {[%emt 0:00:36]} 26. Nxd6 {[%emt 0:06:43]} cxd6 {[%emt 0:01:39]} 27. Rc7 {[%emt 0:00:09]} Qd8 {[%emt 0:00:58]} 28. Bb6 {[%emt 0:04:49]} d5 {[%emt 0:11:12]} 29. Nxd5+ {[%emt 0:00:06]} Kg8 {[%emt 0:00:03]} 30. Rc5 {[%emt 0:04:03]} Qh4 {[%emt 0:02:18]} 31. Nf6+ {[%emt 0:00:05]} Kh8 {[%emt 0:00:06]} 32. Rxf5 {[%emt 0:00:03]} gxf5 {[%emt 0:00:07]} 33. Bf2 {[%emt 0:00:02]} Rac8 {[%emt 0:00:45]} 34. Qe5 {[%emt 0:00:22]} 1-0

[Event "CZE-tht Extraliga 2018-19"]
[Site "Czech Republic"]
[Date "2019.01.12"]
[Round "5"]
[White "Zilka, Stepan"]
[Black "Vymazal, Bronislav"]
[Result "1/2-1/2"]
[ECO "A04"]
[WhiteElo "2528"]
[BlackElo "2358"]
[Annotator "ChessBase"]
[PlyCount "93"]
[EventDate "2018.11.03"]
[EventType "team-tourn"]
[EventCountry "CZE"]
[SourceTitle "playchess.com"]
[Source "ChessBase"]
[SourceQuality "1"]
[WhiteTeam "Novoborsky"]
[BlackTeam "Brno"]
[TimeControl "40/5400+30:1800+30"]

1. Nf3 {[%emt 0:00:00]} f5 {[%emt 0:00:07]} 2. d3 {[%emt 0:03:20]} Nc6 {[%emt 0:14:47]} 3. e4 {[%emt 0:00:13]} e5 {[%emt 0:01:56]} 4. Nc3 {[%emt 0:11:24]} Nf6 {[%emt 0:05:14]} 5. exf5 {[%emt 0:10:10]} d5 {[%emt 0:00:44]} 6. d4 {[%emt 0:03:50]} exd4 {[%emt 0:14:49]} 7. Nxd4 {[%emt 0:00:13]} Nxd4 {[%emt 0:01:47]} 8. Qxd4 {[%emt 0:00:02]} Bxf5 {[%emt 0:00:41]} 9. Bg5 {[%emt 0:00:41]} Bxc2 {[%emt 0:18:42]} 10. Rc1 {[%emt 0:23:47]} Bg6 {[%emt 0:00:50]} 11. Bd3 {[%emt 0:10:40]} Bxd3 {[%emt 0:03:14]} 12. Qxd3 {[%emt 0:00:13]} c6 {[%emt 0:01:06]} 13. O-O {[%emt 0:00:08]} Be7 {[%emt 0:01:47]} 14. Rfe1 {[%emt 0:04:17]} O-O {[%emt 0:00:46]} 15. Qh3 {[%emt 0:00:50]} Rf7 {[%emt 0:08:27]} 16. Rcd1 {[%emt 0:04:22]} Qf8 {[%emt 0:09:51]} 17. Qe6 {[%emt 0:01:44]} Kh8 {[%emt 0:00:50]} 18. Be3 {[%emt 0:07:24]} Bd6 {[%emt 0:00:53]} 19. g3 {[%emt 0:00:43]} Re8 {[%emt 0:00:23]} 20. Qh3 {[%emt 0:00:02]} Rfe7 {[%emt 0:01:06]} 21. Qf1 {[%emt 0:01:16]} b6 {[%emt 0:00:45]} 22. Bg5 {[%emt 0:01:02]} Bc5 {[%emt 0:00:30]} 23. Rxe7 {[%emt 0:00:49]} Qxe7 {[%emt 0:00:49]} 24. Na4 {[%emt 0:01:39]} Bd6 {[%emt 0:00:56]} 25. Rc1 {[%emt 0:00:53]} b5 {[%emt 0:02:32]} 26. Nc3 {[%emt 0:00:01]} a6 {[%emt 0:00:12]} 27. Nd1 {[%emt 0:02:47]} c5 {[%emt 0:03:19]} 28. Ne3 {[%emt 0:00:10]} d4 {[%emt 0:00:34]} 29. Nc2 {[%emt 0:03:40]} Qf7 {[%emt 0:02:02]} 30. Bxf6 {[%emt 0:01:33]} Qxf6 {[%emt 0:00:06]} 31. Re1 {[%emt 0:01:27]} Rxe1 {[%emt 0:00:31]} 32. Qxe1 {[%emt 0:00:09]} Qe5 {[%emt 0:00:19]} 33. Qa5 {[%emt 0:00:17]} h6 {[%emt 0:02:24]} 34. Qxa6 {[%emt 0:00:02]} c4 {[%emt 0:00:27]} 35. a4 {[%emt 0:03:31]} d3 {[%emt 0:00:53]} 36. Ne3 {[%emt 0:00:06]} d2 {[%emt 0:00:15]} 37. axb5 {[%emt 0:03:18]} Kh7 {[%emt 0:02:05]} 38. Qc8 {[%emt 0:01:15]} Bc5 {[%emt 0:00:48]} 39. Nd1 {[%emt 0:00:15]} Qe1+ {[%emt 0:01:18]} 40. Kg2 {[%emt 0:00:02]} Qxd1 {[%emt 0:00:36]} 41. Qf5+ {[%emt 0:30:53]} Kg8 {[%emt 0:30:35]} 42. Qe6+ {[%emt 0:01:09]} Kf8 {[%emt 0:00:00]} 43. Qf5+ {[%emt 0:00:00]} Ke8 {[%emt 0:00:00]} 44. Qc8+ {[%emt 0:00:00]} Kf7 {[%emt 0:00:00]} 45. Qf5+ {[%emt 0:00:00]} Ke8 {[%emt 0:00:00]} 46. Qc8+ {[%emt 0:00:00]} Kf7 {[%emt 0:00:00]} 47. Qf5+ {[%emt 0:00:00]} 1/2-1/2

[Event "CZE-tht Extraliga 2018-19"]
[Site "Czech Republic"]
[Date "2019.01.12"]
[Round "5"]
[White "Jakubiec, Artur"]
[Black "Mroziak, Maciej"]
[Result "1/2-1/2"]
[ECO "A05"]
[WhiteElo "2496"]
[BlackElo "2378"]
[Annotator "ChessBase"]
[PlyCount "87"]
[EventDate "2018.11.03"]
[EventType "team-tourn"]
[EventCountry "CZE"]
[SourceTitle "playchess.com"]
[Source "ChessBase"]
[SourceQuality "1"]
[WhiteTeam "Ostrava"]
[BlackTeam "Cesky Tesin"]
[TimeControl "40/5400+30:1800+30"]

1. Nf3 {[%emt 0:00:00]} Nf6 {[%emt 0:00:49]} 2. g3 {[%emt 0:00:00]} g6 {[%emt 0:00:04]} 3. Bg2 {[%emt 0:00:00]} Bg7 {[%emt 0:00:06]} 4. O-O {[%emt 0:00:00]} O-O {[%emt 0:00:06]} 5. d3 {[%emt 0:00:00]} d6 {[%emt 0:00:19]} 6. c3 {[%emt 0:02:52]} e5 {[%emt 0:00:31]} 7. e4 {[%emt 0:02:39]} a5 {[%emt 0:05:24]} 8. Re1 {[%emt 0:08:47]} Re8 {[%emt 0:25:51]} 9. Nbd2 {[%emt 0:09:03]} d5 {[%emt 0:06:36]} 10. exd5 {[%emt 0:02:22]} Nxd5 {[%emt 0:00:11]} 11. d4 {[%emt 0:00:29]} exd4 {[%emt 0:03:41]} 12. Rxe8+ {[%emt 0:00:10]} Qxe8 {[%emt 0:00:04]} 13. Nxd4 {[%emt 0:00:09]} Bxd4 {[%emt 0:20:09]} 14. Bxd5 {[%emt 0:15:11]} Bg7 {[%emt 0:01:47]} 15. Ne4 {[%emt 0:03:13]} Nd7 {[%emt 0:16:10]} 16. Ng5 {[%emt 0:03:26]} Ne5 {[%emt 0:00:05]} 17. Bf4 {[%emt 0:02:16]} h6 {[%emt 0:00:12]} 18. Bxe5 {[%emt 0:01:45]} hxg5 {[%emt 0:00:04]} 19. Bxc7 {[%emt 0:02:41]} Be6 {[%emt 0:05:22]} 20. a4 {[%emt 0:07:13]} Qd7 {[%emt 0:03:43]} 21. Bxe6 {[%emt 0:00:28]} Qxc7 {[%emt 0:00:24]} 22. Bd5 {[%emt 0:02:10]} Qb6 {[%emt 0:04:23]} 23. Qe2 {[%emt 0:02:11]} Rd8 {[%emt 0:00:46]} 24. Rd1 {[%emt 0:00:27]} Bf6 {[%emt 0:00:39]} 25. Bc4 {[%emt 0:09:46]} Rxd1+ {[%emt 0:02:06]} 26. Qxd1 {[%emt 0:00:04]} Qc7 {[%emt 0:01:58]} 27. Qd5 {[%emt 0:01:36]} Kg7 {[%emt 0:00:36]} 28. Kf1 {[%emt 0:02:16]} b6 {[%emt 0:00:42]} 29. Ke2 {[%emt 0:03:46]} Be5 {[%emt 0:00:05]} 30. h3 {[%emt 0:03:07]} Bd6 {[%emt 0:00:44]} 31. Kd3 {[%emt 0:01:09]} Bc5 {[%emt 0:00:16]} 32. f3 Qe7 {[%emt 0:00:47]} 33. Kc2 {[%emt 0:01:04]} Bf2 {[%emt 0:00:46]} 34. g4 {[%emt 0:00:33]} Bc5 {[%emt 0:00:21]} 35. Kb3 {[%emt 0:00:19]} Qf6 {[%emt 0:00:36]} 36. Qb7 {[%emt 0:00:18]} Qf4 {[%emt 0:00:36]} 37. Bd5 {[%emt 0:00:42]} Be3 {[%emt 0:00:33]} 38. Qd7 {[%emt 0:01:13]} Bc5 {[%emt 0:00:16]} 39. Be4 {[%emt 0:01:25]} Qh2 {[%emt 0:00:45]} 40. Qe8 {[%emt 0:03:31]} Bg1 {[%emt 0:00:48]} 41. Qe7 {[%emt 0:31:34]} Qf4 {[%emt 0:02:36]} 42. h4 {[%emt 0:00:00]} gxh4 {[%emt 0:03:51]} 43. Qxh4 {[%emt 0:00:00]} Qd2 {[%emt 0:00:05]} 44. Ka2 {[%emt 0:00:00]} 1/2-1/2

[Event "CZE-tht Extraliga 2018-19"]
[Site "Czech Republic"]
[Date "2019.01.12"]
[Round "5"]
[White "Petrik, Tomas"]
[Black "Ponizil, Cyril"]
[Result "1-0"]
[ECO "B32"]
[WhiteElo "2481"]
[BlackElo "2491"]
[Annotator "ChessBase"]
[PlyCount "83"]
[EventDate "2018.11.03"]
[EventType "team-tourn"]
[EventCountry "CZE"]
[SourceTitle "playchess.com"]
[Source "ChessBase"]
[SourceQuality "1"]
[WhiteTeam "Siesta"]
[BlackTeam "Duras"]
[TimeControl "40/5400+30:1800+30"]

1. e4 {[%emt 0:00:11]} c5 {[%emt 0:00:00]} 2. Nf3 {[%emt 0:00:06]} Nc6 {[%emt 0:00:00]} 3. d4 {[%emt 0:01:18]} cxd4 {[%emt 0:00:00]} 4. Nxd4 {[%emt 0:00:07]} Qb6 {[%emt 0:00:00]} 5. Nb3 {[%emt 0:00:14]} Nf6 {[%emt 0:00:00]} 6. Nc3 {[%emt 0:00:19]} e6 {[%emt 0:00:00]} 7. Bd3 {[%emt 0:01:03]} Be7 {[%emt 0:02:34]} 8. O-O {[%emt 0:01:55]} d6 {[%emt 0:00:30]} 9. a4 {[%emt 0:07:14]} O-O {[%emt 0:04:41]} 10. a5 {[%emt 0:01:09]} Qd8 {[%emt 0:01:19]} 11. Be3 {[%emt 0:09:26]} Nb4 {[%emt 0:01:02]} 12. Be2 {[%emt 0:19:01]} e5 {[%emt 0:09:25]} 13. Ra4 {[%emt 0:08:43]} Na6 {[%emt 0:06:30]} 14. Bg5 {[%emt 0:07:27]} Be6 {[%emt 0:06:51]} 15. Bxf6 {[%emt 0:02:40]} Bxf6 {[%emt 0:00:04]} 16. Bc4 {[%emt 0:00:42]} Qd7 {[%emt 0:05:32]} 17. Qd3 {[%emt 0:05:23]} Rfc8 {[%emt 0:06:11]} 18. Rd1 {[%emt 0:06:42]} Be7 {[%emt 0:00:51]} 19. h3 {[%emt 0:03:34]} Bf8 {[%emt 0:02:45]} 20. Rd2 {[%emt 0:02:02]} Nc5 {[%emt 0:04:43]} 21. Nxc5 {[%emt 0:01:08]} Rxc5 {[%emt 0:00:03]} 22. b3 {[%emt 0:09:06]} Rac8 {[%emt 0:09:30]} 23. Nd5 {[%emt 0:00:40]} Qd8 {[%emt 0:02:33]} 24. a6 {[%emt 0:03:44]} b6 {[%emt 0:00:05]} 25. Ne3 {[%emt 0:02:30]} Qg5 {[%emt 0:03:33]} 26. Bxe6 {[%emt 0:01:58]} fxe6 {[%emt 0:00:05]} 27. Rc4 {[%emt 0:00:06]} Qe7 {[%emt 0:05:07]} 28. Rxc5 {[%emt 0:00:43]} Rxc5 {[%emt 0:01:48]} 29. b4 {[%emt 0:00:07]} Rc8 {[%emt 0:02:08]} 30. Qb3 {[%emt 0:01:43]} Kh8 {[%emt 0:06:50]} 31. Rd3 {[%emt 0:00:07]} g6 {[%emt 0:00:36]} 32. Rc3 {[%emt 0:00:48]} Rd8 {[%emt 0:00:54]} 33. Qc4 {[%emt 0:00:36]} Bh6 {[%emt 0:04:32]} 34. Qc7 {[%emt 0:00:09]} Rd7 {[%emt 0:00:57]} 35. Qb8+ {[%emt 0:00:33]} Kg7 {[%emt 0:00:04]} 36. Ng4 {[%emt 0:01:30]} Bf4 {[%emt 0:01:37]} 37. Rc8 {[%emt 0:01:10]} Qf7 {[%emt 0:00:05]} 38. g3 {[%emt 0:01:21]} h5 {[%emt 0:03:23]} 39. Rg8+ {[%emt 0:01:22]} Kh7 {[%emt 0:05:30]} 40. Rh8+ {[%emt 0:00:16]} Kg7 {[%emt 0:00:03]} 41. Rg8+ {[%emt 0:02:16]} Kh7 {[%emt 0:00:06]} 42. Rf8 {[%emt 0:01:04]} 1-0